fUST/lending_fUST_20240117
["ID","MTS","AMOUNT","RATE_DAILY","PERIOD"]
[311809138,1705421132089,-154.9690062,0.00028277,4]
[311809139,1705421132115,-323.19676634,0.00028278,2]
[311809140,1705421132143,-165.19538764,0.00028291,2]
[311809141,1705421132173,-480.21677432,0.00028394,5]
[311809142,1705421132199,-20882.03797315,0.00028418,2]
[311809143,1705421132222,-24900.0,0.00028419,2]
[311809144,1705421132248,-150.0,0.00029,2]
[311809145,1705421132275,-400.0,0.000297,14]
[311809146,1705421132301,-14389.17407379,0.00029761,2]
[311809147,1705421132326,-165.19538763,0.00029763,2]
[311809148,1705421132350,-4313.05,0.0002979,3]
[311809149,1705421132372,-28629.48836093,0.000298,2]
[311809160,1705421231110,-154.9690062,0.00028309,4]
[311809161,1705421231133,-9110.22573903,0.0002831,4]
[311809162,1705421231153,-323.19676634,0.00028797,2]
[311809163,1705421231173,-7995.1019034,0.00029789,2]
[311809164,1705421231193,-2811.92311989,0.00029789,2]
[311809165,1705421231213,-1733.32,0.0002979,3]
[311809166,1705421231236,-3305.32,0.0002979,3]
[311809167,1705421231261,-13706.10600457,0.00029797,2]
[311809168,1705421231283,-250.16082593,0.00029797,2]
[311809169,1705421231303,-688.53642166,0.00029798,2]
[311809170,1705421231323,-162.94145327,0.00029798,2]
[311809171,1705421231343,-882.69968757,0.00029799,2]
[311809172,1705421231364,-20882.03797315,0.00029799,2]
[311809173,1705421231386,-219257.19304899,0.000298,2]
[311809177,1705421253093,-5083.50668795,0.0002831,4]
[311809178,1705421253114,-154.9690062,0.00028798,4]
[311809179,1705421253135,-154.77896212,0.00029067,2]
[311809180,1705421253158,-154.41457912,0.00029357,2]
[311809181,1705421253180,-2754.43,0.0002979,3]
[311809182,1705421253203,-54382.86787461,0.000298,2]
[311809183,1705421254089,-29819.57189962,0.000298,2]
[311809184,1705421254110,-3317.6555251,0.000298,2]
[311809185,1705421254130,-261.2512567,0.000298,2]
[311809186,1705421254153,-305.34280228,0.000298,2]
[311809187,1705421254172,-177.598992,0.00029863,2]
[311809188,1705421254192,-154.77896212,0.00029931,2]
[311809189,1705421254211,-168.00002645,0.0003,7]
[311809190,1705421254231,-154.77896212,0.00030754,7]
[311809191,1705421254251,-351.0,0.0003091,30]
[311809192,1705421254271,-351.0,0.0003092,30]
[311809193,1705421254290,-351.0,0.0003093,30]
[311809194,1705421254311,-162.0,0.0003097,30]
[311809195,1705421254331,-162.0,0.0003098,30]
[311809196,1705421254350,-162.0,0.0003099,30]
[311809197,1705421254371,-200.0,0.00031259,15]
[311809198,1705421254391,-154.77896212,0.00031265,7]
[311809199,1705421254414,-154.77896212,0.00031573,7]
[311809200,1705421254436,-154.77896212,0.00031785,7]
[311809201,1705421254455,-421.42910496,0.00031898,2]
[311809202,1705421254475,-28056.480962,0.00031998,2]
[311809203,1705421254496,-7991.86031954,0.00031998,4]
[311809204,1705421254515,-1945.68856948,0.00031998,4]
[311809205,1705421254535,-434.23749797,0.00031998,4]
[311809206,1705421254554,-455.81832442,0.00031999,2]
[311809207,1705421254574,-617.68456265,0.00031999,2]
[311809208,1705421254594,-480.7676071,0.00031999,2]
[311809209,1705421254614,-252.88511449,0.00031999,2]
[311809210,1705421254637,-356.09320464,0.00031999,2]
[311809240,1705421432621,-154.9690062,0.00028393,4]
[311809242,1705421432633,-529.6870752,0.00028394,5]
[311809244,1705421432645,-323.19676634,0.00029862,2]
[311809247,1705421432656,-177.598992,0.00029863,2]
[311809248,1705421432668,-168.00002645,0.0003,7]
[311809250,1705421432679,-28056.480962,0.00030993,2]
[311809252,1705421432691,-24900.0,0.00030994,2]
[311809253,1705421432702,-1106.95,0.00031989,3]
[311809255,1705421432714,-2110.87,0.0003199,3]
[311809257,1705421432725,-1759.06,0.0003199,3]
[311809260,1705421432737,-410.24944644,0.00031999,2]
[311809262,1705421432749,-4061.22129929,0.00031999,4]
[311809266,1705421432799,-396.28132561,0.00031999,4]
[311809269,1705421432809,-351.009366,0.00031999,2]
[311809271,1705421432820,-650.59132824,0.00031999,4]
[311809273,1705421432832,-154.9690062,0.00031999,2]
[311809275,1705421432844,-61132.11608395,0.00032,15]
[311809314,1705421438720,-1341.370018,0.00029463,2]
[311809315,1705421438729,-1465.88,0.0003199,3]
[311809316,1705421438738,-44098.36588965,0.00032,15]
[311809317,1705421438756,-69523.78470301,0.00032,15]
[311809318,1705421438764,-421.42910495,0.00032024,2]
[311809319,1705421438774,-421.42910495,0.00032149,2]
[311809320,1705421438783,-421.42910495,0.00032275,2]
[311809321,1705421438796,-150.5,0.0003237,30]
[311809322,1705421438805,-150.5,0.0003238,30]
[311809323,1705421438814,-150.5,0.0003239,30]
[311809324,1705421438823,-1000.0,0.00032398,35]
[311809325,1705421438833,-500.0,0.00032399,2]
[311809326,1705421438843,-626.44255725,0.00032399,2]
[311809327,1705421438852,-455.81832443,0.00032399,2]
[311809328,1705421438860,-206.04326019,0.00032399,2]
[311809329,1705421438870,-432.37919386,0.00032399,2]
[311809330,1705421438879,-500.0,0.00032399,2]
[311809331,1705421438889,-500.0,0.00032399,2]
[311809332,1705421438898,-500.0,0.00032399,2]
[311809333,1705421438907,-545.40926248,0.00032399,2]
[311809334,1705421438917,-500.0,0.00032399,2]
[311809335,1705421438927,-500.0,0.00032399,2]
[311809336,1705421438936,-500.0,0.00032399,2]
[311809337,1705421438946,-276000.0,0.000324,2]
[311809338,1705421438955,-421.42910495,0.000324,2]
[311809339,1705421438964,-461.3601619,0.00032499,4]
[311809340,1705421438974,-213.9659631,0.00032499,4]
[311809341,1705421438983,-394.96370251,0.00032499,4]
[311809342,1705421438994,-155.07458334,0.000325,4]
[311809343,1705421439003,-1822.38176649,0.000325,2]
[311809344,1705421439013,-241012.49273594,0.000325,20]
[311809345,1705421439022,-375.86553435,0.00032876,7]
[311809346,1705421439031,-500.0,0.00032876,7]
[311809347,1705421439040,-500.0,0.00032876,7]
[311809348,1705421439051,-500.0,0.00032876,7]
[311809349,1705421439061,-500.0,0.00032876,7]
[311809350,1705421439070,-534.05694686,0.00032876,7]
[311809351,1705421439079,-500.0,0.00032876,7]
[311809352,1705421439088,-319.33053294,0.00033,15]
[311809353,1705421439099,-151.2478173,0.00033421,2]
[311809354,1705421439109,-177.598992,0.0003379,2]
[311809355,1705421439119,-155.01395126,0.00034,4]
[311809356,1705421439130,-1000.0,0.00034,7]
[311809357,1705421439140,-200.0,0.00034092,15]
[311809358,1705421439149,-151.0,0.00034926,2]
[311809359,1705421439160,-154.77896219,0.00034927,7]
[311809360,1705421439170,-154.93802479,0.00035,4]
[311809361,1705421439180,-6797.08209082,0.00035,45]
[311809362,1705421439189,-2153.94041184,0.00035,4]
[311809363,1705421439200,-845.01046306,0.00035,2]
[311809364,1705421439209,-1493.73141194,0.00035,7]
[311809365,1705421439219,-6758.53889554,0.00035,4]
[311809366,1705421439229,-872.47438703,0.00035,5]
[311809367,1705421439238,-8093.76385301,0.000355,14]
[311809368,1705421439248,-1083.322116,0.00035616,120]
[311809369,1705421439259,-230.31267465,0.00036,4]
[311809370,1705421439269,-151.48485454,0.000369,2]
[311809371,1705421439280,-151.0,0.00037354,4]
[311809372,1705421439290,-151.48485454,0.00037638,2]
[311809373,1705421439302,-389.38816697,0.000377,2]
[311809374,1705421439312,-177.598992,0.00037717,2]
[311809375,1705421439322,-17398.0,0.00037777,4]
[311809376,1705421439332,-497.12734932,0.00037808,5]
[311809377,1705421439341,-1452.95,0.00038,20]
[311809378,1705421439351,-151.48485454,0.00038376,2]
[311809379,1705421439362,-13139.37457175,0.00039,2]
[311809380,1705421439373,-181.78182545,0.00039114,5]
[311809381,1705421439382,-5000.0,0.0003927,4]
[311809383,1705421439392,-2020.62,0.000395,16]
[311809385,1705421439402,-1515.00935449,0.000396,30]
[311809387,1705421439411,-1076.15,0.000397,10]
[311809389,1705421439420,-392.73571615,0.000397,120]
[311809390,1705421439431,-201.145351,0.00039781,4]
[311809392,1705421439442,-1818.78230826,0.00039788,2]
[311809395,1705421439454,-154.9690062,0.00039789,4]
[311809397,1705421439463,-155.6738997,0.00039789,4]
[311809398,1705421439473,-155.00310006,0.00039798,2]
[311809400,1705421439482,-154.9690062,0.00039798,4]
[311809402,1705421439491,-279.16710384,0.00039798,2]
[311809404,1705421439500,-8537.24700599,0.00039798,2]
[311809406,1705421439511,-265.05974209,0.00039798,4]
[311809408,1705421439529,-213.10093744,0.00039799,4]
[311809410,1705421439539,-169.27015822,0.00039799,7]
[311809412,1705421439550,-63412.67387366,0.000398,30]
[311809415,1705421439563,-350.3925786,0.000398,30]
[311809543,1705421441621,-77575.26058,0.000398,30]
[311809549,1705421441680,-2342.58720012,0.000398,30]
[311809554,1705421441725,-43369.27292348,0.000398,30]
[311809620,1705421443694,-526.68107856,0.000398,30]
[311809621,1705421443706,-5172.96511166,0.000398,30]
[311809622,1705421443717,-541.64725697,0.000398,30]
[311809623,1705421443753,-25361.63187848,0.000398,30]
[311809624,1705421443762,-712.64677565,0.000398,7]
[311809625,1705421443772,-300.0,0.000398,4]
[311809626,1705421443782,-157.12285579,0.000398,7]
[311809627,1705421443791,-500.0,0.000398,2]
[311809628,1705421443802,-500.0,0.000398,2]
[311809629,1705421443811,-417.9625127,0.000398,10]
[311809630,1705421443822,-205.807189,0.000398,7]
[311809631,1705421443832,-213.40093879,0.000398,10]
[311809632,1705421443841,-251.433409,0.000398,17]
[311809633,1705421443851,-181.78182545,0.00039852,5]
[311809634,1705421443861,-351.0,0.00039969,30]
[311809635,1705421443870,-351.0,0.00039979,30]
[311809636,1705421443880,-351.0,0.00039989,30]
[311809637,1705421443889,-5766.12963691,0.0003999,4]
[311809638,1705421443899,-326.9659131,0.00039998,4]
[311809639,1705421443909,-155.44928656,0.00039998,4]
[311809640,1705421443919,-607.85777857,0.00039998,4]
[311809663,1705421446749,-210.28092951,0.00031999,2]
[311809665,1705421446759,-351.009366,0.00031999,2]
[311809666,1705421446769,-275.83888289,0.00039799,4]
[311809667,1705421446779,-28056.480962,0.00039799,2]
[311809668,1705421446788,-2273.69260881,0.00039998,4]
[311809669,1705421446797,-19838.74080195,0.00039998,4]
[311809671,1705421446809,-521.37403251,0.00039998,4]
[311809673,1705421446818,-154.93802479,0.0004,4]
[311809674,1705421446828,-500.0,0.0004,10]
[311809676,1705421446837,-1919.33525227,0.0004,4]
[311809677,1705421446847,-238.04660663,0.0004,4]
[311809678,1705421446856,-50000.0,0.0004,5]
[311809680,1705421446866,-50000.0,0.0004,10]
[311809681,1705421446875,-50000.0,0.0004,15]
[311809682,1705421446885,-500.0,0.0004,10]
[311809683,1705421446895,-400.0,0.0004,15]
[311809684,1705421446905,-2292.47313996,0.0004,3]
[311809685,1705421446915,-290.0,0.0004,4]
[311809686,1705421446925,-1815.70792445,0.0004,30]
[311809687,1705421446935,-200.0,0.0004,30]
[311809688,1705421446944,-1936.89332571,0.0004,120]
[311809689,1705421446954,-1488.02692767,0.0004,60]
[311809690,1705421446964,-884.22805085,0.0004,15]
[311809691,1705421446973,-168.18694152,0.0004,2]
[311809692,1705421446983,-1000.0,0.0004,30]
[311809693,1705421446993,-2716.46149718,0.0004,2]
[311809694,1705421447003,-1117.32490242,0.0004,2]
[311809695,1705421447012,-6015.71,0.0004,20]
[311809696,1705421447022,-4000.0,0.0004,30]
[311809697,1705421447031,-157.73856703,0.0004,7]
[311809698,1705421447041,-737.87798092,0.0004,2]
[311809699,1705421447051,-5000.0,0.0004,2]
[311809700,1705421447061,-719.21909748,0.0004,2]
[311809701,1705421447082,-301.81412355,0.0004,2]
[311809702,1705421447092,-3566.887583,0.0004,2]
[311809703,1705421447102,-864.83297922,0.0004,2]
[311809704,1705421447112,-1417.11794743,0.0004,7]
[311809705,1705421447122,-218.32984529,0.0004,10]
[311809706,1705421447132,-151.0,0.0004,2]
[311809707,1705421447143,-2000.0,0.0004,27]
[311809708,1705421447153,-151.0,0.0004,2]
[311809709,1705421447163,-726.836307,0.0004,2]
[311809710,1705421447174,-189.17395543,0.0004,7]
[311809711,1705421447183,-151.0,0.0004,2]
[311809712,1705421447193,-734.57374323,0.0004,15]
[311809713,1705421447202,-8943.20657647,0.0004,15]
[311809714,1705421447211,-797.73680779,0.0004,15]
[311809715,1705421447221,-2000.0,0.0004001,27]
[311809716,1705421447230,-2111.646756,0.0004002,27]
[311809717,1705421447240,-223.564661,0.00040241,2]
[311809718,1705421447249,-379.838413,0.00040241,2]
[311809719,1705421447258,-212.07879636,0.0004059,8]
[311809720,1705421447267,-212.07879636,0.0004059,8]
[311809721,1705421447276,-2534.22,0.00040648,2]
[311809722,1705421447286,-223.564661,0.00040738,2]
[311809723,1705421447295,-379.838413,0.00040738,2]
[311809724,1705421447306,-160.0,0.00040949,3]
[311809725,1705421447317,-219.77457894,0.00040996,4]
[311809726,1705421447327,-3128.91674015,0.00041,90]
[311809727,1705421447336,-198.47650434,0.00041,5]
[311809728,1705421447345,-1000.0,0.00041,41]
[311809729,1705421447354,-1000.0,0.00041,30]
[311809730,1705421447364,-7299.03789345,0.00041,2]
[311809731,1705421447373,-734.0,0.00041,15]
[311809732,1705421447382,-3253.60004544,0.00041,15]
[311809733,1705421485061,6000.0,0.00018,2]
[311809735,1705421549344,-338300.33088173,0.00043208,31]
[311809736,1705421549367,-2089.04683245,0.00043208,30]
[311809737,1705421549393,-500.0,0.00043208,120]
[311809738,1705421549418,-2008.47217154,0.00043208,30]
[311809739,1705421549440,-868.25636797,0.00043208,120]
[311809740,1705421549462,-3144.05492135,0.00043208,30]
[311809741,1705421549486,-576.96867868,0.00043208,120]
[311809742,1705421549508,-2142.13837747,0.00043208,120]
[311809743,1705421549532,-487.06496966,0.00043208,120]
[311809744,1705421549555,-539.51830787,0.00043208,120]
[311809745,1705421549577,-424.79976051,0.00043208,120]
[311809746,1705421549602,-660.01022631,0.00043208,30]
[311809747,1705421549626,-816.74835517,0.00043208,120]
[311809748,1705421549650,-921.96697674,0.00043208,120]
[311809749,1705421549672,-1140.70798527,0.00043208,30]
[311809750,1705421549694,-161.89586009,0.00043208,30]
[311809751,1705421549716,-625.51602724,0.00043208,120]
[311809752,1705421549739,-2379.06815041,0.00043208,120]
[311809753,1705421549773,-313.74672745,0.00043208,120]
[311809754,1705421549800,-150.91865695,0.00043208,30]
[311809755,1705421549824,-2433.80653939,0.00043208,120]
[311809756,1705421549848,-549.52282055,0.00043208,30]
[311809757,1705421549875,-2659.0,0.00043208,60]
[311809758,1705421549900,-514.39,0.00043208,120]
[311809759,1705421549926,-5105.57602929,0.00043208,61]
[311809760,1705421549951,-2020.48,0.00043208,60]
[311809761,1705421549982,-2000.0,0.00043208,31]
[311809762,1705421550006,-4666.0,0.00043208,32]
[311809763,1705421560995,-1815.70792445,0.0004,30]
[311809764,1705421561021,-500.0,0.00041095,30]
[311809765,1705421561044,-400.0,0.00041095,30]
[311809766,1705421561068,-500.0,0.00041095,30]
[311809767,1705421561093,-502.89799206,0.00041095,30]
[311809768,1705421561117,-220.73076107,0.00041095,30]
[311809769,1705421561146,-508.95622634,0.00041095,30]
[311809770,1705421561170,-151.40506426,0.00041095,30]
[311809771,1705421561195,-386.11503566,0.00041095,30]
[311809772,1705421561222,-500.0,0.00041095,30]
[311809773,1705421561247,-500.0,0.00041095,30]
[311809774,1705421561275,-500.0,0.00041095,30]
[311809775,1705421561300,-500.0,0.00041095,30]
[311809776,1705421561325,-500.0,0.00041095,30]
[311809777,1705421561349,-343.19826167,0.00041095,30]
[311809778,1705421561375,-500.0,0.00041095,30]
[311809779,1705421561411,-500.73120998,0.00041095,30]
[311809780,1705421561439,-500.0,0.00041095,30]
[311809781,1705421561464,-573.4,0.00041095,30]
[311809782,1705421561488,-501.93438759,0.00041095,30]
[311809783,1705421561513,-500.0,0.00041095,30]
[311809784,1705421561538,-557.01681763,0.00041095,30]
[311809785,1705421561561,-519.45523657,0.00041095,30]
[311809786,1705421561585,-155.14192239,0.00041095,30]
[311809787,1705421561608,-500.0,0.00041095,30]
[311809788,1705421561635,-500.0,0.00041095,30]
[311809789,1705421561660,-500.0,0.00041095,30]
[311809790,1705421561684,-632.52767945,0.00041095,30]
[311809791,1705421561707,-500.0,0.00041095,30]
[311809792,1705421561730,-995.35,0.00041095,30]
[311809793,1705421561757,-500.0,0.00041095,30]
[311809794,1705421561783,-500.0,0.00041095,30]
[311809795,1705421561822,-500.0,0.00041095,30]
[311809796,1705421561849,-500.0,0.00041095,30]
[311809797,1705421561875,-500.0,0.00041095,30]
[311809798,1705421561908,-495.49025751,0.00041095,30]
[311809799,1705421561932,-500.0,0.00041095,30]
[311809800,1705421561958,-500.0,0.00041095,30]
[311809801,1705421561982,-500.0,0.00041095,30]
[311809802,1705421562006,-254.73333895,0.00041095,30]
[311809803,1705421562032,-570.15,0.00041095,30]
[311809804,1705421562056,-554.32556193,0.00041095,30]
[311809805,1705421562083,-500.0,0.00041095,30]
[311809806,1705421562107,-500.0,0.00041095,30]
[311809807,1705421562136,-500.0,0.00041095,30]
[311809808,1705421562279,-500.0,0.00041095,30]
[311809809,1705421562304,-155.2053861,0.00041095,30]
[311809810,1705421562328,-510.22549501,0.00041095,30]
[311809811,1705421562351,-500.0,0.00041095,30]
[311809812,1705421562375,-500.0,0.00041095,30]
[311809813,1705421562405,-500.0,0.00041095,30]
[311809814,1705421562430,-536.62,0.00041095,30]
[311809815,1705421562455,-500.4137572,0.00041095,30]
[311809816,1705421562479,-500.0,0.00041095,30]
[311809817,1705421562504,-500.0,0.00041095,30]
[311809818,1705421562528,-500.0,0.00041095,30]
[311809819,1705421562551,-509.82347944,0.00041095,30]
[311809820,1705421562573,-500.0,0.00041095,30]
[311809821,1705421562596,-500.0,0.00041095,30]
[311809822,1705421562618,-500.0,0.00041095,30]
[311809823,1705421562643,-524.52232068,0.00041095,30]
[311809824,1705421562666,-155.93861246,0.00041095,30]
[311809825,1705421562689,-502.71971081,0.00041095,30]
[311809826,1705421562711,-503.24411305,0.00041095,30]
[311809827,1705421562733,-500.0,0.00041095,30]
[311809828,1705421562758,-500.0,0.00041095,30]
[311809829,1705421562782,-500.0,0.00041095,30]
[311809830,1705421562806,-500.0,0.00041095,30]
[311809831,1705421562829,-500.0,0.00041095,30]
[311809832,1705421562853,-500.0,0.00041095,30]
[311809833,1705421562878,-500.0,0.00041095,30]
[311809834,1705421562902,-500.0,0.00041095,30]
[311809835,1705421562924,-504.42543785,0.00041095,30]
[311809836,1705421562947,-500.0,0.00041095,30]
[311809837,1705421562970,-500.0,0.00041095,30]
[311809838,1705421562994,-574.82,0.00041095,30]
[311809839,1705421563017,-500.0,0.00041095,30]
[311809840,1705421563040,-500.0,0.00041095,30]
[311809841,1705421563076,-500.0,0.00041095,30]
[311809842,1705421563109,-500.0,0.00041095,30]
[311809843,1705421563146,-500.75449606,0.00041095,30]
[311809844,1705421563182,-500.0,0.00041095,30]
[311809845,1705421563213,-604.98,0.00041095,30]
[311809846,1705421563244,-500.0,0.00041095,30]
[311809847,1705421563275,-517.84212114,0.00041095,30]
[311809848,1705421563305,-500.0,0.00041095,30]
[311809849,1705421563336,-501.83812293,0.00041095,30]
[311809850,1705421563368,-500.0,0.00041095,30]
[311809851,1705421563402,-601.06064518,0.00041095,30]
[311809852,1705421563436,-500.0,0.00041095,30]
[311809853,1705421563471,-536.6398113,0.00041095,30]
[311809854,1705421563501,-500.22489338,0.00041095,30]
[311809855,1705421563528,-500.0,0.00041095,30]
[311809856,1705421563560,-500.0,0.00041095,30]
[311809857,1705421563589,-253.24117854,0.00041095,30]
[311809858,1705421563620,-500.0,0.00041095,30]
[311809859,1705421563651,-500.0,0.00041095,30]
[311809860,1705421563682,-500.0,0.00041095,30]
[311809861,1705421563714,-500.0,0.00041095,30]
[311809862,1705421563744,-500.0,0.00041095,30]
[311809863,1705421563775,-409.36031585,0.00041095,30]
[311809864,1705421563807,-500.0,0.00041095,30]
[311809865,1705421563835,-1557.43,0.00041095,30]
[311809866,1705421563865,-500.0,0.00041095,30]
[311809867,1705421563898,-500.0,0.00041095,30]
[311809868,1705421563928,-500.0,0.00041095,30]
[311809869,1705421563963,-500.0,0.00041095,30]
[311809870,1705421563996,-500.0,0.00041095,30]
[311809871,1705421564031,-500.0,0.00041095,30]
[311809872,1705421564064,-500.74578859,0.00041095,30]
[311809873,1705421564096,-500.0,0.00041095,30]
[311809874,1705421564239,-500.28499619,0.00041095,30]
[311809875,1705421564264,-500.0,0.00041095,30]
[311809876,1705421564292,-504.37165104,0.00041095,30]
[311809877,1705421564317,-7953.13,0.00041095,30]
[311809878,1705421564346,-500.85643977,0.00041095,30]
[311809879,1705421564370,-500.0,0.00041095,30]
[311809880,1705421564400,-500.0,0.00041095,30]
[311809881,1705421564425,-500.0,0.00041095,30]
[311809882,1705421564448,-500.0,0.00041095,30]
[311809883,1705421564489,-500.0,0.00041095,30]
[311809884,1705421564517,-521.1810761,0.00041095,30]
[311809885,1705421564544,-451.80013938,0.00041095,30]
[311809886,1705421564571,-500.0,0.00041095,30]
[311809887,1705421564598,-500.0,0.00041095,30]
[311809888,1705421564626,-500.0,0.00041095,30]
[311809889,1705421564658,-501.90946252,0.00041095,30]
[311809890,1705421564686,-1159.97,0.00041095,30]
[311809891,1705421564711,-500.0,0.00041095,30]
[311809892,1705421564735,-500.0,0.00041095,30]
[311809893,1705421564760,-500.0,0.00041095,30]
[311809894,1705421564788,-500.0,0.00041095,30]
[311809895,1705421564814,-500.0,0.00041095,30]
[311809896,1705421564839,-500.22522185,0.00041095,30]
[311809897,1705421564865,-500.0,0.00041095,30]
[311809898,1705421564891,-500.0,0.00041095,30]
[311809899,1705421564915,-500.0,0.00041095,30]
[311809900,1705421564939,-514.67,0.00041095,30]
[311809901,1705421564965,-500.31587966,0.00041095,30]
[311809902,1705421564990,-500.0,0.00041095,30]
[311809903,1705421565014,-500.0,0.00041095,30]
[311809904,1705421565039,-500.0,0.00041095,30]
[311809905,1705421565063,-168.11506356,0.00041095,30]
[311809906,1705421565086,-500.0,0.00041095,30]
[311809907,1705421565111,-500.0,0.00041095,30]
[311809908,1705421565138,-508.87,0.00041095,30]
[311809909,1705421565161,-488.51439056,0.00041095,30]
[311809910,1705421565186,-500.0,0.00041095,30]
[311809911,1705421565210,-500.0,0.00041095,30]
[311809912,1705421565234,-225.97871656,0.00041095,30]
[311809913,1705421565257,-500.0,0.00041095,30]
[311809914,1705421565281,-501.29941584,0.00041095,30]
[311809915,1705421565305,-501.42994804,0.00041095,30]
[311809916,1705421565330,-500.0,0.00041095,30]
[311809917,1705421565354,-500.0,0.00041095,30]
[311809918,1705421565377,-500.0,0.00041095,30]
[311809919,1705421565404,-501.5870556,0.00041095,30]
[311809920,1705421565429,-501.605338,0.00041095,30]
[311809921,1705421565453,-500.0,0.00041095,30]
[311809922,1705421565477,-501.63026354,0.00041095,30]
[311809923,1705421565502,-500.0,0.00041095,30]
[311809924,1705421565526,-500.0,0.00041095,30]
[311809925,1705421565550,-500.0,0.00041095,30]
[311809926,1705421565574,-500.0,0.00041095,30]
[311809927,1705421565598,-500.0,0.00041095,30]
[311809928,1705421565622,-507.72720742,0.00041095,30]
[311809929,1705421565651,-500.51196504,0.00041095,30]
[311809930,1705421565675,-500.0,0.00041095,30]
[311809931,1705421565699,-500.0,0.00041095,30]
[311809932,1705421565722,-500.0,0.00041095,30]
[311809933,1705421565745,-500.0,0.00041095,30]
[311809934,1705421565771,-500.0,0.00041095,30]
[311809935,1705421565795,-500.0,0.00041095,30]
[311809936,1705421565820,-500.0,0.00041095,30]
[311809937,1705421565844,-500.59560856,0.00041095,30]
[311809938,1705421565869,-500.0,0.00041095,30]
[311809939,1705421565895,-500.0,0.00041095,30]
[311809940,1705421565918,-500.0,0.00041095,30]
[311809941,1705421565944,-500.0,0.00041095,30]
[311809942,1705421565970,-500.0,0.00041095,30]
[311809943,1705421565994,-378.37155466,0.00041095,30]
[311809944,1705421566021,-235.15936769,0.00041095,30]
[311809945,1705421566054,-605.78919628,0.00041095,30]
[311809946,1705421566079,-500.0,0.00041095,30]
[311809947,1705421566108,-500.0,0.00041095,30]
[311809948,1705421566135,-619.09382054,0.00041095,30]
[311809949,1705421566161,-500.0,0.00041095,30]
[311809950,1705421566184,-500.0,0.00041095,30]
[311809951,1705421566207,-500.0,0.00041095,30]
[311809952,1705421566230,-500.0,0.00041095,30]
[311809953,1705421566253,-500.0,0.00041095,30]
[311809954,1705421566278,-500.0,0.00041095,30]
[311809955,1705421566302,-304.78346241,0.00041095,30]
[311809956,1705421566326,-500.0,0.00041095,30]
[311809957,1705421566449,-500.0,0.00041095,30]
[311809958,1705421566473,-602.19131901,0.00041095,30]
[311809959,1705421566497,-501.90734656,0.00041095,30]
[311809960,1705421566520,-500.0,0.00041095,30]
[311809961,1705421566545,-500.0,0.00041095,30]
[311809962,1705421566569,-500.0,0.00041095,30]
[311809963,1705421566593,-500.0,0.00041095,30]
[311809964,1705421566616,-502.5649991,0.00041095,30]
[311809965,1705421566643,-1859.39399482,0.00041095,30]
[311809966,1705421566668,-669.72,0.00041095,30]
[311809967,1705421566692,-500.0,0.00041095,30]
[311809968,1705421566716,-500.0,0.00041095,30]
[311809969,1705421566741,-500.0,0.00041095,30]
[311809970,1705421566768,-500.0,0.00041095,30]
[311809971,1705421566795,-1274.64,0.00041095,30]
[311809972,1705421566818,-500.0,0.00041095,30]
[311809973,1705421566842,-503.29156879,0.00041095,30]
[311809974,1705421566866,-501.13933347,0.00041095,30]
[311809975,1705421566891,-501.95614521,0.00041095,30]
[311809976,1705421566914,-500.0,0.00041095,30]
[311809977,1705421566938,-512.04464966,0.00041095,30]
[311809978,1705421566962,-500.0,0.00041095,30]
[311809979,1705421566985,-500.0,0.00041095,30]
[311809980,1705421567008,-150.0,0.00041095,30]
[311809981,1705421567031,-500.0,0.00041095,30]
[311809982,1705421567055,-500.0,0.00041095,30]